bitfinex-derivatives/quotes_SOLF0:USTF0_20241226
["timestamp","ask_amount","ask_price","bid_price","bid_amount"]
[1735227159329,15.77050526,189.73,189.61,2.6396]
[1735227159822,2.6386,189.69,189.62,2.6394]
[1735227160125,3.54,189.68,189.62,12.23050526]
[1735227160327,3.54,189.72,189.62,12.23050526]
[1735227161331,2.6383,189.71,189.62,12.23050526]
[1735227161531,3.54,189.72,189.62,12.23050526]
[1735227162133,6.1783,189.72,189.65,2.6392]
[1735227162334,3.54,189.72,189.65,2.6392]
[1735227163133,2.6386,189.69,189.63,2.6394]
[1735227163328,3.54,189.72,189.6,1.6543]
[1735227163535,12.23050526,189.7,189.6,1.6543]
[1735227163728,2.6389,189.67,189.61,2.6397]
[1735227163931,3.54,189.66,189.61,2.6397]
[1735227164227,3.54,189.66,189.6,1.6543]
[1735227164438,2.6393,189.64,189.53,12.23050526]
[1735227164622,2.6393,189.64,189.54,5.0047]
[1735227164823,3.54,189.66,189.54,5.0047]
[1735227165027,3.54,189.66,189.57,2.6402]
[1735227165028,2.6396,189.63,189.57,2.6402]
[1735227165231,6.7372,189.66,189.54,5.0047]
[1735227165735,12.23050526,189.67,189.54,5.0047]
[1735227166035,3.54,189.66,189.54,5.0047]
[1735227166235,2.6396,189.62,189.56,2.6404]
[1735227166434,2.6396,189.62,189.54,5.0047]
[1735227166635,12.23050526,189.64,189.54,5.0047]
[1735227166835,3.54,189.65,189.54,5.0047]
[1735227168236,2.6396,189.62,189.54,5.0047]
[1735227169532,2.6395,189.63,189.56,2.6404]
[1735227169731,12.23050526,189.64,189.54,5.0047]
[1735227170137,14.86990526,189.64,189.57,2.6401]
[1735227170330,12.23050526,189.64,189.54,1.6707]
[1735227170532,12.23050526,189.61,189.48,4.7024]
[1735227170731,2.6404,189.57,189.5,2.6411]
[1735227170929,12.23050526,189.58,189.42,12.23050526]
[1735227171134,12.23050526,189.58,189.43,3.1237]
[1735227171434,12.23050526,189.55,189.43,3.1237]
[1735227171636,3.5,189.54,189.43,3.1237]
[1735227171836,2.6412,189.5,189.43,3.1237]
[1735227172035,3.5,189.49,189.43,3.1237]
[1735227172237,3.5,189.49,189.43,1.5709]
[1735227172432,6.1414,189.49,189.43,1.5709]
[1735227172629,3.5,189.49,189.43,1.5709]
[1735227172839,12.23050526,189.55,189.43,1.5709]
[1735227173036,3.5,189.54,189.44,1.5214]
[1735227173234,3.5,189.55,189.46,12.23050526]
[1735227174237,3.5,189.55,189.48,2.6414]
[1735227174434,3.5,189.55,189.44,1.5214]
[1735227175542,3.5,189.55,189.5,2.6411]
[1735227176638,3.5,189.55,189.48,2.6414]
[1735227177040,3.5,189.55,189.44,1.5214]
[1735227178043,3.5,189.55,189.48,2.6415]
[1735227178245,2.6411,189.52,189.44,1.5214]
[1735227178438,3.5,189.55,189.44,4.1633]
[1735227178647,3.5,189.55,189.44,1.5214]
[1735227178943,19.62055486,189.56,189.48,2.6415]
[1735227178944,3.5,189.54,189.48,2.6415]
[1735227179334,3.5,189.54,189.44,1.5214]
[1735227179535,3.5,189.54,189.46,2.6417]
[1735227179940,3.5,189.54,189.44,1.5214]
[1735227180336,3.5,189.54,189.43,1.5709]
[1735227180539,2.6412,189.51,189.45,2.6419]
[1735227180748,1.6009,189.53,189.4,1.5787]
[1735227181046,2.6414,189.5,189.44,2.642]
[1735227181245,3.5,189.49,189.4,1.5787]
[1735227182250,3.5,189.49,189.39,107.15311136]
[1735227182547,3.5,189.49,189.38,3.2571]
[1735227183247,2.6421,189.44,189.37,2.6429]
[1735227183447,3.5,189.43,189.37,2.6429]
[1735227184043,2.6425,189.42,189.36,1.5248]
[1735227184250,3.5,189.43,189.32,4.7285]
[1735227184448,19.62055486,189.48,189.32,4.7285]
[1735227184651,3.5,189.46,189.35,19.62055486]
[1735227184848,3.5,189.46,189.45,2.6419]
[1735227185551,3.5,189.46,189.44,2.6421]
[1735227186146,3.5,189.46,189.35,19.62055486]
[1735227186349,3.5,189.46,189.33,3.5]
[1735227186651,3.5,189.46,189.34,19.62055486]
[1735227187145,3.5,189.46,189.43,2.6421]
[1735227189343,2.642,189.45,189.39,2.6428]
[1735227189541,3.5,189.46,189.32,4.7285]
[1735227189746,21.14635486,189.52,189.32,8.2285]
[1735227190055,5.7857,189.53,189.46,2.6417]
[1735227190246,3.5,189.52,189.46,2.6417]
[1735227190747,6.1411,189.52,189.46,2.6417]
[1735227191349,2.6411,189.51,189.45,2.6419]
[1735227191746,3.5,189.51,189.37,3.5]
[1735227191946,19.62055486,189.56,189.39,19.62055486]
[1735227192246,3.5,189.55,189.4,4.9009]
[1735227192647,3.5,189.55,189.46,2.6417]
[1735227193145,3.5,189.55,189.4,4.9009]
[1735227193351,19.62055486,189.52,189.4,4.9009]
[1735227193745,19.62055486,189.48,189.33,28.8439055]
[1735227193946,3.5,189.47,189.33,28.8439055]
[1735227194448,3.5,189.47,189.33,21.63292913]
[1735227194650,3.5,189.47,189.32,4.8758]
[1735227194847,3.5,189.47,189.35,2.6432]
[1735227195048,3.5,189.47,189.32,4.8758]
[1735227195450,3.5,189.47,189.35,2.6432]
[1735227195451,2.6424,189.42,189.35,2.6432]
[1735227195653,3.5,189.42,189.35,2.6432]
[1735227195852,3.5,189.42,189.3,107.19920807]
[1735227196149,2.6428,189.39,189.32,2.6437]
[1735227196353,12.2863445,189.41,189.27,8.3758]
[1735227196550,12.2863445,189.41,189.27,4.8758]
[1735227196951,2.6431,189.37,189.31,2.6439]
[1735227197148,3.5,189.37,189.24,7.21097637]
[1735227197354,12.2863445,189.35,189.24,7.21097637]
[1735227197553,2.6437,189.33,189.26,2.6446]
[1735227197754,3.5,189.32,189.22,3.2512]
[1735227198153,2.644,189.31,189.23,2.6449]
[1735227198357,15.7863445,189.32,189.22,3.2512]
[1735227198655,4.8309,189.4,189.22,15.5375445]
[1735227198656,3.5,189.34,189.22,15.5375445]
[1735227199152,3.5,189.34,189.25,2.6446]
[1735227199351,3.5,189.34,189.22,15.5375445]
[1735227199556,12.2863445,189.38,189.23,3.52]
[1735227199854,3.52,189.35,189.23,3.52]
[1735227200054,3.52,189.35,189.22,15.5375445]
[1735227200055,15.8063445,189.35,189.22,15.5375445]
[1735227200254,2.6438,189.32,189.24,2.6447]
[1735227200859,2.6439,189.31,189.24,2.6447]
[1735227201056,3.52,189.3,189.25,2.6447]
[1735227201256,3.52,189.34,189.25,2.6447]
[1735227202558,2.6437,189.33,189.25,2.6447]
[1735227202758,3.52,189.34,189.25,2.6447]
[1735227202958,2.6439,189.32,189.26,2.6445]
[1735227203661,2.6439,189.31,189.25,2.6447]
[1735227203856,12.2863445,189.32,189.2,4.7839]
[1735227204053,2.644,189.31,189.25,2.6447]
[1735227204249,3.52,189.3,189.2,4.7839]
[1735227204759,6.164,189.3,189.23,2.645]
[1735227205361,12.2863445,189.32,189.26,2.6445]
[1735227205559,12.2863445,189.35,189.2,4.7839]
[1735227205759,3.52,189.35,189.22,12.2863445]
[1735227206763,3.2493,189.4,189.25,12.2863445]
[1735227206958,3.52,189.39,189.25,12.2863445]
[1735227207161,3.52,189.39,189.26,3.52]
[1735227207659,3.52,189.39,189.33,2.6436]
[1735227210459,19.65923691,189.43,189.26,3.52]
[1735227210460,2.6425,189.42,189.26,3.52]
[1735227210663,3.52,189.44,189.31,19.65923691]
[1735227210964,4.7816,189.52,189.32,4.6915]
[1735227211163,3.52,189.47,189.32,4.6915]
[1735227211565,2.6416,189.46,189.38,2.6426]
[1735227211762,2.6416,189.46,189.32,4.6915]
[1735227211961,3.52,189.47,189.32,4.6915]
[1735227213263,2.6411,189.5,189.38,2.6427]
[1735227213463,3.52,189.48,189.32,4.6915]
[1735227213662,2.6411,189.5,189.32,4.6915]
[1735227213969,3.52,189.51,189.39,19.65923691]
[1735227214162,3.52,189.52,189.4,1.607]
[1735227214464,3.2241,189.59,189.41,3.1995]
[1735227214465,3.52,189.55,189.41,3.1995]
[1735227215455,3.52,189.55,189.46,2.6415]
[1735227215764,19.65923691,189.57,189.41,3.1995]
[1735227215962,3.52,189.56,189.49,2.641]
[1735227216162,3.52,189.56,189.41,22.85873691]
[1735227217958,3.52,189.56,189.48,2.6411]
[1735227218559,3.52,189.56,189.41,22.85873691]
[1735227218761,3.52,189.55,189.41,22.85873691]
[1735227219062,3.52,189.55,189.51,2.6408]
[1735227219262,3.2241,189.59,189.41,22.85873691]
[1735227219457,3.52,189.58,189.45,19.65923691]
[1735227219656,2.6395,189.61,189.5,2.6409]
[1735227219962,3.52,189.6,189.46,3.52]
[1735227220367,3.52,189.6,189.5,2.641]
[1735227220561,3.52,189.6,189.46,3.52]
[1735227221066,3.52,189.6,189.54,2.6404]
[1735227221468,21.33863691,189.64,189.46,3.52]
[1735227221669,3.52,189.61,189.57,2.6399]
[1735227221869,1.6794,189.64,189.49,19.65923691]
[1735227222170,3.52,189.64,189.5,4.8351]
[1735227222363,3.52,189.64,189.51,3.52]
[1735227223062,3.52,189.66,189.53,19.65923691]
[1735227224066,3.52,189.69,189.53,19.65923691]
[1735227224659,3.52,189.69,189.63,2.639]
[1735227225364,3.52,189.69,189.58,1.6662]
[1735227225566,19.65923691,189.76,189.58,1.6662]
[1735227225768,3.52,189.75,189.59,3.151]
[1735227226770,6.1576,189.75,189.67,2.6385]
[1735227226963,3.52,189.75,189.59,3.151]
[1735227228471,2.6381,189.71,189.64,2.639]
[1735227228671,3.52,189.7,189.64,2.639]
[1735227228866,3.52,189.7,189.59,3.151]
[1735227229273,3.52,189.7,189.64,2.639]
[1735227229776,6.1582,189.7,189.63,2.6392]
[1735227230969,6.1582,189.7,189.64,2.639]
[1735227231174,3.52,189.7,189.64,2.639]
[1735227231571,3.52,189.7,189.58,1.6662]
[1735227231971,2.6385,189.68,189.58,1.6662]
[1735227232769,2.6388,189.66,189.58,1.6662]
[1735227232972,3.56,189.65,189.54,3.1885]
[1735227233574,3.56,189.65,189.43,1.6407]
[1735227233575,19.65923691,189.64,189.5,3.56]
[1735227233774,19.65923691,189.64,189.46,3.56]
[1735227234078,2.6397,189.6,189.46,3.56]
[1735227234275,3.56,189.59,189.46,3.56]
[1735227235967,3.56,189.59,189.49,2.641]
[1735227236172,2.6399,189.58,189.45,19.65923691]
[1735227236374,3.56,189.59,189.44,3.2136]
[1735227236375,5.1691,189.59,189.44,3.2136]
[1735227236769,1.6018,189.58,189.44,3.2136]
[1735227237173,2.6404,189.55,189.48,2.6411]
[1735227237473,3.56,189.54,189.48,2.6411]
[1735227237678,3.56,189.54,189.44,3.2136]
[1735227237872,2.6406,189.53,189.46,2.6415]
[1735227238073,3.56,189.54,189.43,1.6407]
[1735227238272,3.56,189.56,189.43,1.6407]
[1735227239185,3.56,189.56,189.51,2.6408]
[1735227240183,3.56,189.56,189.43,1.6407]
[1735227243285,56.413,189.63,189.45,19.65923691]
[1735227243487,3.56,189.62,189.46,3.56]
[1735227243881,3.56,189.62,189.47,3.1884]
[1735227245085,3.56,189.61,189.47,3.1884]
[1735227245286,21.29193691,189.68,189.49,19.65923691]
[1735227245489,3.56,189.65,189.49,19.65923691]
[1735227245686,3.1912,189.68,189.62,2.6392]
[1735227245985,3.56,189.67,189.54,3.56]
[1735227246182,3.56,189.67,189.62,2.6392]
[1735227246790,3.56,189.67,189.54,5.1801]
[1735227246985,3.56,189.67,189.64,2.639]
[1735227247382,3.56,189.71,189.66,2.6386]
[1735227247583,3.1563,189.73,189.66,2.6386]
[1735227247779,3.56,189.7,189.66,2.6386]
[1735227248077,3.56,189.72,189.67,2.6385]
[1735227249179,3.1563,189.73,189.67,2.6385]
[1735227249379,3.56,189.74,189.69,2.6383]
[1735227249888,3.56,189.75,189.69,2.6383]
[1735227250083,3.56,189.75,189.62,1.5457]
[1735227250290,3.56,189.75,189.66,2.6387]
[1735227250482,6.1976,189.75,189.62,1.5457]
[1735227250688,3.56,189.75,189.65,2.6388]
[1735227250887,24.50523691,189.8,189.62,1.5457]
[1735227251089,19.65923691,189.76,189.62,1.5457]
[1735227251291,19.65923691,189.76,189.64,2.639]
[1735227251694,19.65923691,189.72,189.59,28.59169848]
[1735227251997,6.7307,189.71,189.59,28.59169848]
[1735227252194,19.65923691,189.68,189.59,28.59169848]
[1735227252591,19.65923691,189.68,189.61,2.6394]
[1735227253496,2.6389,189.65,189.6,2.6396]
[1735227253696,3.56,189.64,189.6,2.6396]
[1735227254792,3.56,189.64,189.52,35.32459848]
[1735227255792,3.56,189.64,189.56,2.6401]
[1735227255992,2.6392,189.63,189.53,11.34212809]
[1735227256392,3.56,189.64,189.53,11.34212809]
[1735227257093,3.56,189.63,189.6,2.6395]
[1735227257490,3.56,189.63,189.61,2.6394]
[1735227257797,3.56,189.63,189.53,4.19420347]
[1735227257995,3.56,189.63,189.53,7.14792462]
[1735227258388,3.56,189.63,189.56,2.6401]
[1735227258597,3.56,189.63,189.53,7.14792462]
[1735227258996,3.56,189.63,189.56,2.6401]
[1735227259193,3.56,189.63,189.55,28.59169848]
[1735227259495,2.6394,189.62,189.55,28.59169848]
[1735227259696,3.2275,189.62,189.55,28.59169848]
[1735227259891,3.56,189.63,189.55,28.59169848]
[1735227260296,3.56,189.63,189.52,3.1729]
[1735227260691,1.5208,189.67,189.56,2.6401]
[1735227260892,3.52,189.66,189.52,3.1729]
[1735227261296,3.52,189.66,189.52,10.32082462]
[1735227262298,3.52,189.65,189.52,10.32082462]
[1735227262499,3.52,189.65,189.6,2.6395]
[1735227262993,1.5208,189.67,189.62,2.6392]
[1735227263194,3.52,189.66,189.53,55.96461411]
[1735227263402,3.52,189.69,189.53,55.96461411]
[1735227263601,3.52,189.69,189.54,28.59169848]
[1735227264298,3.52,189.69,189.56,12.24745695]
[1735227264501,1.5506,189.7,189.56,12.24745695]
[1735227264801,15.76745695,189.71,189.57,7.14792462]
[1735227265001,15.76745695,189.71,189.58,3.52]
[1735227265196,3.52,189.71,189.59,12.24745695]
[1735227265401,3.52,189.71,189.59,13.85235695]
[1735227266100,2.6382,189.7,189.59,13.85235695]
[1735227267004,3.52,189.71,189.64,2.6389]
[1735227268404,6.1581,189.71,189.64,2.6389]
[1735227269002,6.1583,189.71,189.65,2.6391]
[1735227269506,15.76745695,189.71,189.59,1.6049]
[1735227269705,12.24745695,189.68,189.54,7.14792462]
[1735227269904,12.24745695,189.68,189.54,8.82242462]
[1735227270106,2.6394,189.64,189.54,8.82242462]
[1735227270301,3.52,189.63,189.54,8.82242462]
[1735227270703,3.52,189.63,189.56,2.6403]
[1735227270908,3.52,189.63,189.54,1.6745]
[1735227271698,12.24745695,189.62,189.49,8.82242462]
[1735227271906,12.24745695,189.59,189.49,8.82242462]
[1735227272097,3.52,189.58,189.49,7.14792462]
[1735227272302,12.24745695,189.56,189.46,28.59169848]
[1735227272698,12.24745695,189.56,189.43,87.91507851]
[1735227273106,12.24745695,189.53,189.43,1.6745]
[1735227273307,3.52,189.52,189.43,1.6745]
[1735227273604,1.6426,189.61,189.44,3.52]
[1735227273804,3.52,189.6,189.46,12.24745695]
[1735227274206,2.6401,189.58,189.49,2.6413]
[1735227274407,1.5277,189.59,189.43,1.6745]
[1735227274806,2.6403,189.58,189.49,2.6413]
[1735227275006,1.5277,189.59,189.49,2.6413]
[1735227275206,1.5277,189.59,189.43,1.6745]
[1735227275407,2.6404,189.57,189.5,2.6412]
[1735227276213,19.62088182,189.57,189.43,1.6745]
[1735227276506,19.62088182,189.57,189.38,52.1123728]
[1735227276709,2.6412,189.51,189.45,2.6419]
[1735227276906,3.52,189.5,189.45,2.6419]
[1735227277612,3.52,189.5,189.46,2.6418]
[1735227277807,3.52,189.5,189.37,4.7615]
[1735227278010,1.5277,189.59,189.38,19.62088182]
[1735227278208,3.52,189.58,189.42,19.62088182]
[1735227278409,3.52,189.58,189.43,3.52]
[1735227278815,3.52,189.58,189.47,2.6416]
[1735227279005,3.52,189.58,189.37,4.7615]
[1735227279211,19.62088182,189.53,189.37,4.7615]
[1735227279411,5.0794,189.52,189.38,28.8941108]
[1735227279913,2.6418,189.47,189.39,2.6427]
[1735227280114,3.52,189.46,189.39,2.6427]
[1735227280314,3.52,189.46,189.38,28.8941108]
[1735227280712,3.52,189.46,189.37,1.5597]
[1735227282214,2.6421,189.44,189.36,2.6432]
[1735227282514,3.52,189.46,189.33,1.6407]
[1735227283913,3.52,189.46,189.36,2.6431]
[1735227284120,3.52,189.46,189.33,1.6407]
[1735227285520,3.52,189.46,189.4,2.6425]
[1735227286123,3.52,189.46,189.33,1.6407]
[1735227286320,3.52,189.46,189.41,2.6425]
[1735227287220,3.52,189.45,189.41,2.6425]
[1735227288423,3.52,189.45,189.36,2.6431]
[1735227288615,3.52,189.45,189.33,1.6407]
[1735227289516,3.52,189.48,189.33,1.6407]
[1735227289718,3.52,189.48,189.45,2.6419]
[1735227290118,3.52,189.48,189.37,3.52]
[1735227290318,3.52,189.48,189.43,2.6422]
[1735227290520,3.52,189.49,189.43,2.6422]
[1735227290725,3.52,189.49,189.37,3.52]
[1735227290928,3.52,189.49,189.44,2.642]
[1735227291223,19.62088182,189.53,189.37,3.52]
[1735227291532,3.52,189.52,189.37,3.52]
[1735227292429,3.52,189.54,189.5,2.6411]
[1735227294323,4.2241,189.59,189.52,2.641]
[1735227294527,3.52,189.58,189.52,2.641]
[1735227294724,3.52,189.58,189.44,3.52]
[1735227296326,19.62088182,189.65,189.44,23.14088182]
[1735227296732,3.5,189.62,189.44,23.14088182]
[1735227297032,2.6398,189.61,189.44,23.14088182]
[1735227297631,2.6398,189.61,189.54,2.6407]
[1735227297832,2.64,189.59,189.44,19.62088182]
[1735227298034,19.62088182,189.61,189.45,3.5]
[1735227298331,2.6403,189.57,189.45,3.5]
[1735227298532,3.5,189.57,189.41,4.7784]
[1735227298833,2.6409,189.53,189.41,8.2784]
[1735227299032,23.12088182,189.57,189.45,2.6419]
[1735227299229,1.5902,189.56,189.41,4.7784]
[1735227299932,2.6408,189.54,189.41,4.7784]
[1735227300234,1.5902,189.56,189.41,4.7784]
[1735227300931,1.5902,189.56,189.43,2.6422]
[1735227300932,2.6414,189.5,189.43,2.6422]
[1735227301131,6.1414,189.5,189.43,2.6422]
[1735227302535,3.5,189.5,189.41,1.5419]
[1735227302736,3.5,189.5,189.36,78.70029263]
[1735227302737,19.62088182,189.49,189.36,78.70029263]
[1735227302931,19.62088182,189.49,189.36,1.5809]
[1735227304225,2.6419,189.46,189.39,2.6428]
[1735227304427,19.62088182,189.49,189.39,2.6428]
[1735227304934,19.62088182,189.49,189.36,1.5809]
[1735227305431,19.62088182,189.49,189.42,2.6422]
[1735227305633,19.62088182,189.49,189.36,1.5809]
[1735227306141,2.6419,189.46,189.4,2.6425]
[1735227306332,3.52,189.45,189.4,2.6425]
[1735227306534,23.14088182,189.45,189.32,7.18352869]
[1735227306739,3.2325,189.44,189.32,28.73411476]
[1735227307039,2.6429,189.38,189.32,31.37781476]
[1735227307237,3.52,189.37,189.32,28.73411476]
[1735227307738,3.52,189.37,189.28,1.6611]
[1735227308935,3.52,189.37,189.3,2.6439]
[1735227309132,3.52,189.37,189.28,1.6611]
[1735227310140,3.52,189.37,189.26,7.18352869]
[1735227310444,23.14088182,189.37,189.28,2.6443]
[1735227311537,2.6435,189.34,189.28,2.6443]
[1735227311737,23.14088182,189.37,189.28,2.6443]
[1735227312135,2.6435,189.34,189.28,2.6443]
[1735227312837,2.6433,189.36,189.3,2.644]
[1735227313045,23.14088182,189.37,189.3,2.644]
[1735227313238,23.14088182,189.37,189.25,3.1558]
[1735227313439,19.62088182,189.33,189.26,2.6445]
[1735227313638,19.62088182,189.33,189.19,30.37491476]
[1735227313639,3.52,189.32,189.19,30.37491476]
[1735227313839,6.6379,189.32,189.19,30.37491476]
[1735227314344,2.6441,189.3,189.24,2.6448]
[1735227314642,6.6379,189.32,189.24,2.6448]
[1735227314843,6.6379,189.32,189.19,1.6408]
[1735227315342,3.52,189.31,189.19,1.6408]
[1735227315845,3.52,189.31,189.28,2.6443]
[1735227316249,3.52,189.31,189.27,2.6444]
[1735227316547,3.52,189.35,189.2,23.14088182]
[1735227317250,3.52,189.35,189.2,3.52]
[1735227317542,3.52,189.35,189.25,2.6446]
[1735227317737,3.52,189.35,189.2,3.52]
[1735227317939,19.62088182,189.33,189.21,4.16596556]
[1735227318345,2.644,189.31,189.24,2.6448]
[1735227318540,3.5,189.3,189.24,2.6448]
[1735227318745,2.6442,189.29,189.22,2.645]
[1735227319748,2.6442,189.29,189.23,2.6449]
[1735227319950,3.5,189.3,189.23,2.6449]
[1735227320150,6.1441,189.3,189.23,2.6449]
[1735227320549,2.6446,189.27,189.2,2.6453]
[1735227320946,2.6446,189.27,189.19,1.6408]
[1735227321952,2.6446,189.27,189.21,2.6453]
[1735227322249,19.62088182,189.29,189.08,19.62088182]
[1735227322444,19.62088182,189.25,189.15,2.6461]
[1735227322643,3.5,189.24,189.15,2.6461]
[1735227323046,3.1486,189.23,189.15,2.6461]
[1735227323646,2.6456,189.2,189.15,2.6461]
[1735227323847,3.5,189.19,189.15,2.6461]
[1735227324650,2.6459,189.17,189.05,118.97021121]
[1735227324946,3.5,189.19,189.05,118.97021121]
[1735227325753,6.1457,189.19,189.12,2.6465]
[1735227326153,2.6457,189.18,189.12,2.6465]
[1735227326554,3.5,189.19,189.05,115.47021121]
[1735227326756,2.6459,189.17,189.05,115.47021121]
[1735227326952,3.5,189.19,189.05,115.47021121]
[1735227327153,19.62088182,189.21,189.05,115.47021121]
[1735227327458,3.1486,189.23,189.06,3.5]
[1735227327756,3.5,189.2,189.06,3.5]
[1735227328361,3.5,189.2,189.17,2.6457]
[1735227328859,3.5,189.2,189.14,2.6462]
[1735227329062,3.5,189.2,189.06,3.5]
[1735227329551,3.5,189.2,189.15,2.6461]
[1735227329756,3.5,189.2,189.06,3.5]
[1735227330158,3.5,189.2,189.05,115.47021121]
[1735227330953,2.6457,189.18,189.09,2.6469]
[1735227331254,19.62088182,189.17,189.05,115.47021121]
[1735227331446,19.62088182,189.17,189.08,2.6471]
[1735227331653,19.62088182,189.17,189.04,3.2906]
[1735227332459,19.62088182,189.13,189.0,1.5563]
[1735227332660,6.7501,189.12,189.0,1.5563]
[1735227333273,2.647,189.09,189.03,2.6477]
[1735227333468,6.7501,189.12,189.0,1.5563]
[1735227333866,2.6467,189.11,189.0,1.5563]
[1735227334468,6.7501,189.12,189.0,1.5563]
[1735227334872,6.7501,189.12,189.06,2.6473]
[1735227335272,22.26728182,189.13,189.0,1.5563]
[1735227335465,3.5,189.12,189.0,1.5563]
[1735227336370,6.1466,189.12,189.0,1.5563]
[1735227336965,3.5,189.12,189.0,1.5563]
[1735227337167,1.5393,189.15,189.0,1.5563]
[1735227337372,3.5,189.14,189.01,0.97269066]
[1735227338073,3.5,189.14,189.09,2.6468]
[1735227338374,3.1906,189.19,189.0,8.71906015]
[1735227338572,3.1906,189.19,189.02,19.62088182]
[1735227338777,3.5,189.18,189.15,2.6461]
[1735227339570,3.5,189.18,189.06,3.1266]
[1735227339776,3.5,189.18,189.15,2.646]
[1735227340178,3.5,189.18,189.13,2.6463]
[1735227340378,3.5,189.18,189.06,3.1266]
[1735227340776,3.5,189.18,189.12,2.6464]
[1735227340976,3.5,189.18,189.06,3.1266]
[1735227341979,3.5,189.18,189.13,2.6463]
[1735227343576,3.5,189.18,189.07,28.65104061]
[1735227344381,5.1688,189.18,189.07,28.65104061]
[1735227344875,2.6461,189.15,189.06,3.1266]
[1735227345879,5.1688,189.18,189.06,3.1266]
[1735227346078,19.62088182,189.16,189.06,3.1266]
[1735227346481,19.62088182,189.16,189.03,28.65104061]
[1735227346676,19.62088182,189.12,189.04,7.16276015]
[1735227346880,2.647,189.09,189.04,9.81036015]
[1735227347183,3.5,189.11,189.04,7.16276015]
[1735227347684,3.5,189.11,189.01,86.2023443]
[1735227347685,3.5,189.11,189.01,4.19794813]
[1735227348079,2.6468,189.1,189.05,2.6474]
[1735227348287,3.5,189.09,189.01,4.19794813]
[1735227348686,3.5,189.09,189.08,2.6471]
[1735227349487,2.6463,189.15,189.0,4.7782]
[1735227349688,3.5,189.14,189.0,4.7782]
[1735227349888,3.5,189.14,189.03,28.94993391]
[1735227350089,6.1463,189.14,189.08,2.647]
[1735227350483,6.1463,189.14,189.03,28.94993391]
[1735227350688,3.5,189.13,189.1,2.6468]
[1735227351988,3.2721,189.18,189.07,7.23748348]
[1735227351989,1.6688,189.18,189.07,7.23748348]
[1735227352192,3.5,189.17,189.08,1.6844]
[1735227352384,3.5,189.17,189.09,8.83828348]
[1735227352893,3.5,189.17,189.14,2.6463]
[1735227353393,74.62088182,189.2,189.09,8.83828348]
[1735227353596,3.5,189.18,189.15,2.6461]
[1735227354094,3.5,189.18,189.11,28.94993391]
[1735227354985,55.0,189.2,189.11,28.94993391]
[1735227355184,3.5,189.19,189.11,4.20736986]
[1735227355586,19.62088182,189.24,189.11,4.20736986]
[1735227355792,2.6452,189.22,189.14,2.6462]
[1735227355994,2.6452,189.22,189.11,4.20736986]
[1735227356190,2.6452,189.22,189.13,7.23748348]
[1735227356394,2.6452,189.22,189.15,2.646]
[1735227357096,2.6456,189.19,189.13,9.88378348]
[1735227357296,3.5,189.18,189.13,9.88378348]
[1735227357788,3.5,189.18,189.13,2.6463]
[1735227357994,6.1457,189.18,189.09,1.6008]
[1735227358187,3.5,189.18,189.12,2.6465]
[1735227358992,2.6459,189.17,189.12,2.6465]
[1735227359596,3.5,189.18,189.1,29.03818977]
[1735227359994,3.5,189.18,189.08,7.25954744]
[1735227360789,2.6463,189.14,189.07,29.03818977]
[1735227360991,3.5,189.13,189.07,29.03818977]
[1735227361994,19.62088182,189.12,189.07,29.03818977]